[Event "Skalica Rapid 2020"]
[Site "Skalica"]
[Date "2020.08.29"]
[Round "6.8"]
[White "Janas, Peter"]
[Black "Sperat Czar, Nicolas"]
[Result "0-1"]
[ECO "A00"]
[WhiteElo "1562"]
[BlackElo "1737"]
[Annotator "NA"]
[PlyCount "118"]
[EventDate "2020.08.29"]
[EventType "swiss"]
[EventCountry "SVK"]
[SourceTitle "playchess.com"]
[Source "ChessBase"]
[SourceQuality "1"]
[TimeControl "600+5"]

1. Nc3 {[%emt 0:00:00]} d5 {[%emt 0:00:00]} 2. e4 {[%emt 0:00:00]} d4 {[%emt 0:00:03]} 3. Nce2 {[%emt 0:00:03]} e5 {[%emt 0:00:13]} 4. Nf3 {[%emt 0:00:03]} Nc6 {[%emt 0:00:15]} 5. Ng3 {[%emt 0:00:04]} Nf6 {[%emt 0:00:09]} 6. Bb5 {[%emt 0:00:08]} Bd6 {[%emt 0:00:01]} 7. d3 {[%emt 0:00:13]} O-O {[%emt 0:00:18]} 8. O-O {[%emt 0:00:13]} Ne7 {[%emt 0:00:26]} 9. c3 {[%emt 0:00:10]} c5 {[%emt 0:00:24]} 10. cxd4 {[%emt 0:00:20]} cxd4 {[%emt 0:00:03]} 11. Ba4 {[%emt 0:00:18]} Ng6 {[%emt 0:00:36]} 12. a3 {[%emt 0:01:17]} a6 {[%emt 0:00:13]} 13. b4 {[%emt 0:00:30]} b5 {[%emt 0:00:02]} 14. Bb3 {[%emt 0:00:03]} Be6 {[%emt 0:00:03]} 15. Ng5 {[%emt 0:00:27]} Bxb3 {[%emt 0:00:06]} 16. Qxb3 {[%emt 0:00:04]} h6 {[%emt 0:00:21]} 17. Nf3 {[%emt 0:00:20]} Ne7 {[%emt 0:00:50]} 18. Bd2 {[%emt 0:00:24]} Qd7 {[%emt 0:00:14]} 19. Rac1 {[%emt 0:00:13]} Rac8 {[%emt 0:00:12]} 20. h3 {[%emt 0:00:15]} Rxc1 {[%emt 0:00:14]} 21. Rxc1 {[%emt 0:00:04]} Rc8 {[%emt 0:00:01]} 22. Rxc8+ {[%emt 0:00:24]} Qxc8 {[%emt 0:00:03]} 23. Nh2 {[%emt 0:00:31]} Kh7 {[%emt 0:00:22]} 24. Ng4 {[%emt 0:00:40]} Nxg4 {[%emt 0:00:13]} 25. hxg4 {[%emt 0:00:01]} Qxg4 {[%emt 0:00:10]} 26. Qxf7 {[%emt 0:00:25]} Qd1+ {[%emt 0:00:11]} 27. Nf1 {[%emt 0:00:02]} Qg4 {[%emt 0:00:37]} 28. f3 {[%emt 0:00:25]} Qg6 {[%emt 0:00:09]} 29. Qxg6+ {[%emt 0:00:53]} Kxg6 {[%emt 0:00:03]} 30. g4 {[%emt 0:00:10]} h5 {[%emt 0:00:26]} 31. gxh5+ {[%emt 0:00:07]} Kxh5 {[%emt 0:00:03]} 32. Kf2 {[%emt 0:00:04]} g5 {[%emt 0:00:09]} 33. Kg3 {[%emt 0:00:18]} Bc7 {[%emt 0:00:39]} 34. Nh2 {[%emt 0:00:05]} Nc6 {[%emt 0:00:43]} 35. Ng4 {[%emt 0:00:08]} Kg6 {[%emt 0:00:06]} 36. Nf2 {[%emt 0:00:08]} a5 {[%emt 0:00:23]} 37. Nh3 {[%emt 0:00:08]} axb4 {[%emt 0:00:21]} 38. axb4 {[%emt 0:00:12]} Bd8 {[%emt 0:00:03]} 39. Kg4 {[%emt 0:00:12]} Be7 {[%emt 0:00:14]} 40. Nxg5 {[%emt 0:00:43]} Bxg5 {[%emt 0:00:13]} 41. Bxg5 {[%emt 0:00:07]} Nxb4 {[%emt 0:00:03]} 42. f4 {[%emt 0:00:02]} exf4 {[%emt 0:00:08]} 43. e5 {[%emt 0:00:16]} Nxd3 {[%emt 0:00:07]} 44. e6 {[%emt 0:00:05]} b4 {[%emt 0:00:13]} 45. Be7 {[%emt 0:00:36]} Kg7 {[%emt 0:00:57]} 46. Kf3 {[%emt 0:00:37]} b3 {[%emt 0:00:30]} 47. Ba3 {[%emt 0:00:28]} b2 {[%emt 0:00:43]} 48. Bxb2 {[%emt 0:00:05]} Nxb2 {[%emt 0:00:05]} 49. Kxf4 {[%emt 0:00:04]} Kf6 {[%emt 0:00:16]} 50. e7 {[%emt 0:00:29]} Kxe7 {[%emt 0:00:02]} 51. Ke4 {[%emt 0:00:02]} d3 {[%emt 0:00:05]} 52. Ke3 {[%emt 0:00:03]} Kd6 {[%emt 0:00:08]} 53. Kd2 {[%emt 0:00:04]} Kd5 {[%emt 0:00:04]} 54. Kc3 {[%emt 0:00:01]} Ke4 {[%emt 0:00:05]} 55. Kd2 {[%emt 0:00:16]} Nc4+ {[%emt 0:00:04]} 56. Kd1 {[%emt 0:00:05]} Ke3 {[%emt 0:00:04]} 57. Ke1 {[%emt 0:00:05]} d2+ {[%emt 0:00:01]} 58. Kd1 {[%emt 0:00:00]} Nb2+ {[%emt 0:00:01]} 59. Kc2 {[%emt 0:00:02]} Ke2 {[%emt 0:00:02]} 0-1

[Event "Skalica Rapid 2020"]
[Site "Skalica"]
[Date "2020.08.29"]
[Round "6.9"]
[White "Jancovic, Peter"]
[Black "Kubat, Pavel"]
[Result "0-1"]
[ECO "D78"]
[WhiteElo "2271"]
[BlackElo "2066"]
[Annotator "ChessBase"]
[PlyCount "56"]
[EventDate "2020.08.29"]
[EventType "swiss"]
[EventCountry "SVK"]
[SourceTitle "playchess.com"]
[Source "ChessBase"]
[SourceQuality "1"]
[TimeControl "600+5"]

1. d4 {[%emt 0:00:00]} Nf6 {[%emt 0:00:00]} 2. Nf3 {[%emt 0:00:00]} g6 {[%emt 0:00:18]} 3. g3 {[%emt 0:00:03]} Bg7 {[%emt 0:00:02]} 4. Bg2 {[%emt 0:00:01]} O-O {[%emt 0:00:04]} 5. O-O {[%emt 0:00:02]} d5 {[%emt 0:00:13]} 6. c4 {[%emt 0:00:09]} c6 {[%emt 0:00:05]} 7. Nbd2 {[%emt 0:00:14]} Bg4 {[%emt 0:00:43]} 8. Ne5 {[%emt 0:00:07]} Be6 {[%emt 0:00:05]} 9. e3 {[%emt 0:00:45]} Nbd7 {[%emt 0:00:06]} 10. Nxd7 {[%emt 0:00:04]} Qxd7 {[%emt 0:00:03]} 11. c5 {[%emt 0:00:09]} Bh3 {[%emt 0:00:03]} 12. Re1 {[%emt 0:00:26]} Bxg2 {[%emt 0:00:02]} 13. Kxg2 {[%emt 0:00:01]} h5 {[%emt 0:00:32]} 14. f4 {[%emt 0:00:39]} h4 {[%emt 0:00:42]} 15. Qf3 {[%emt 0:00:12]} b6 {[%emt 0:00:48]} 16. b4 {[%emt 0:00:12]} a5 {[%emt 0:00:22]} 17. Ba3 {[%emt 0:00:01]} axb4 {[%emt 0:00:15]} 18. Bxb4 {[%emt 0:00:02]} bxc5 {[%emt 0:00:03]} 19. Bxc5 {[%emt 0:00:02]} h3+ {[%emt 0:00:06]} 20. Kg1 {[%emt 0:00:08]} Rfb8 {[%emt 0:00:01]} 21. a3 {[%emt 0:03:05]} Rb2 {[%emt 0:00:36]} 22. Rad1 {[%emt 0:00:35]} Rab8 {[%emt 0:01:02]} 23. Bb4 {[%emt 0:00:07]} Qf5 {[%emt 0:01:22]} 24. Bxe7 {[%emt 0:00:53]} Ne4 {[%emt 0:00:01]} 25. Re2 {[%emt 0:02:12]} Nc3 {[%emt 0:00:23]} 26. Rde1 {[%emt 0:00:01]} Nxe2+ {[%emt 0:00:04]} 27. Rxe2 {[%emt 0:00:01]} Qd3 {[%emt 0:00:24]} 28. Qf2 {[%emt 0:00:44]} Rxd2 {[%emt 0:00:35]} 0-1

[Event "Skalica Rapid 2020"]
[Site "Skalica"]
[Date "2020.08.29"]
[Round "6.9"]
[White "Dubanova, Kristina"]
[Black "Szucs, Vladimir"]
[Result "1-0"]
[ECO "D20"]
[WhiteElo "1128"]
[BlackElo "2088"]
[Annotator "ChessBase"]
[PlyCount "46"]
[EventDate "2020.08.29"]
[EventType "swiss"]
[EventCountry "SVK"]
[SourceTitle "playchess.com"]
[Source "ChessBase"]
[SourceQuality "1"]
[TimeControl "600+5"]

1. d4 {[%emt 0:00:00]} d5 {[%emt 0:00:00]} 2. c4 {[%emt 0:00:02]} dxc4 {[%emt 0:00:07]} 3. e4 {[%emt 0:00:03]} Nf6 {[%emt 0:00:27]} 4. Nc3 {[%emt 0:00:02]} Nc6 {[%emt 0:00:21]} 5. d5 {[%emt 0:00:23]} Ne5 {[%emt 0:00:41]} 6. f4 {[%emt 0:00:13]} Bg4 {[%emt 0:00:53]} 7. Nf3 {[%emt 0:00:25]} Nxf3+ {[%emt 0:00:59]} 8. gxf3 {[%emt 0:00:03]} Bh5 {[%emt 0:00:25]} 9. Bxc4 {[%emt 0:00:04]} c6 {[%emt 0:00:45]} 10. Be3 {[%emt 0:00:12]} e6 {[%emt 0:00:23]} 11. dxc6 {[%emt 0:01:05]} Qd6 12. Qd3 Qxd3 {[%emt 0:01:15]} 13. Rb1 Qd1+ 14. Rxd1 {[%emt 0:00:12]} Bxf3 {[%emt 0:00:28]} 15. cxb7 {[%emt 0:00:07]} Rb8 {[%emt 0:00:11]} 16. Bb5+ {[%emt 0:00:06]} Nd7 {[%emt 0:01:59]} 17. Bxd7+ {[%emt 0:00:19]} Kd8 {[%emt 0:00:50]} 18. O-O {[%emt 0:01:06]} Bxd1 {[%emt 0:00:31]} 19. Rxd1 {[%emt 0:00:03]} Kc7 {[%emt 0:00:43]} 20. Bc8 {[%emt 0:00:04]} Bd6 {[%emt 0:00:17]} 21. Nb5+ {[%emt 0:00:11]} Kc6 {[%emt 0:00:19]} 22. Nxd6 {[%emt 0:00:08]} Rd8 {[%emt 0:00:08]} 23. Bxa7 {[%emt 0:00:15]} Rxb7 {[%emt 0:00:13]} 1-0

[Event "Skalica Rapid 2020"]
[Site "Skalica"]
[Date "2020.08.29"]
[Round "6.10"]
[White "Havelka, Ondrej"]
[Black "Matejovic Juraj"]
[Result "0-1"]
[ECO "E90"]
[WhiteElo "1997"]
[BlackElo "2219"]
[Annotator "ChessBase"]
[PlyCount "68"]
[EventDate "2020.08.29"]
[EventType "swiss"]
[EventCountry "SVK"]
[SourceTitle "playchess.com"]
[Source "ChessBase"]
[SourceQuality "1"]
[TimeControl "600+5"]

1. d4 {[%emt 0:00:00]} Nf6 {[%emt 0:00:38]} 2. c4 {[%emt 0:00:00]} g6 {[%emt 0:00:05]} 3. Nc3 {[%emt 0:00:00]} Bg7 {[%emt 0:00:01]} 4. e4 {[%emt 0:00:00]} d6 {[%emt 0:00:01]} 5. h3 {[%emt 0:00:04]} O-O {[%emt 0:00:03]} 6. Be3 {[%emt 0:00:01]} c5 {[%emt 0:02:11]} 7. Nf3 {[%emt 0:00:25]} Qa5 {[%emt 0:00:15]} 8. Bd3 {[%emt 0:00:17]} cxd4 {[%emt 0:00:17]} 9. Nxd4 {[%emt 0:00:02]} Nc6 {[%emt 0:00:03]} 10. O-O {[%emt 0:00:19]} Bd7 {[%emt 0:00:10]} 11. Rc1 {[%emt 0:00:29]} Rac8 {[%emt 0:00:18]} 12. b3 {[%emt 0:01:26]} a6 {[%emt 0:00:49]} 13. a4 {[%emt 0:01:05]} Nxd4 {[%emt 0:00:51]} 14. Bxd4 {[%emt 0:00:04]} Be6 {[%emt 0:00:01]} 15. f4 {[%emt 0:00:55]} Ne8 {[%emt 0:01:36]} 16. Bxg7 {[%emt 0:00:07]} Nxg7 {[%emt 0:00:14]} 17. f5 {[%emt 0:00:50]} Qc5+ {[%emt 0:00:34]} 18. Kh1 {[%emt 0:00:14]} gxf5 {[%emt 0:00:57]} 19. exf5 {[%emt 0:00:05]} Bxf5 {[%emt 0:00:37]} 20. Nd5 {[%emt 0:00:08]} Bxd3 {[%emt 0:00:35]} 21. Qxd3 {[%emt 0:00:28]} Rce8 {[%emt 0:00:38]} 22. Rce1 {[%emt 0:00:01]} Ne6 {[%emt 0:00:14]} 23. Rf5 {[%emt 0:00:35]} Qd4 {[%emt 0:00:12]} 24. Qf3 {[%emt 0:01:06]} Qg7 {[%emt 0:00:09]} 25. Qf2 {[%emt 0:01:25]} Kh8 {[%emt 0:00:11]} 26. Re4 {[%emt 0:00:24]} Qg6 {[%emt 0:00:24]} 27. Rg4 {[%emt 0:00:22]} Qh6 {[%emt 0:00:04]} 28. Rh4 {[%emt 0:00:45]} Qg6 {[%emt 0:00:04]} 29. Rfh5 {[%emt 0:00:26]} Ng5 {[%emt 0:00:07]} 30. Qe3 {[%emt 0:00:13]} f6 {[%emt 0:00:05]} 31. Nxe7 {[%emt 0:00:11]} Qf7 {[%emt 0:00:04]} 32. Qd3 {[%emt 0:00:07]} Rxe7 {[%emt 0:00:02]} 33. Kh2 {[%emt 0:00:02]} Kg8 {[%emt 0:00:03]} 34. Rh6 {[%emt 0:00:03]} Qg7 {[%emt 0:00:06]} 0-1

[Event "Skalica Rapid 2020"]
[Site "Skalica"]
[Date "2020.08.29"]
[Round "6.11"]
[White "Abel, Peter"]
[Black "Sarmir Milos"]
[Result "1-0"]
[ECO "A53"]
[WhiteElo "2200"]
[BlackElo "2059"]
[Annotator "ChessBase"]
[PlyCount "69"]
[EventDate "2020.08.29"]
[EventType "swiss"]
[EventCountry "SVK"]
[SourceTitle "playchess.com"]
[Source "ChessBase"]
[SourceQuality "1"]
[TimeControl "600+5"]

1. c4 {[%emt 0:00:00]} Nf6 {[%emt 0:00:00]} 2. Nc3 {[%emt 0:00:00]} e5 {[%emt 0:00:03]} 3. Nf3 {[%emt 0:00:01]} d6 {[%emt 0:00:01]} 4. g3 {[%emt 0:00:02]} Be7 {[%emt 0:00:01]} 5. Bg2 {[%emt 0:00:01]} O-O {[%emt 0:00:05]} 6. O-O {[%emt 0:00:06]} c6 {[%emt 0:00:02]} 7. d4 {[%emt 0:00:01]} Qc7 {[%emt 0:00:10]} 8. e4 {[%emt 0:00:06]} Be6 {[%emt 0:00:07]} 9. b3 {[%emt 0:00:12]} Nbd7 {[%emt 0:00:13]} 10. Ng5 {[%emt 0:00:16]} Bg4 {[%emt 0:00:20]} 11. f3 {[%emt 0:00:12]} Bh5 {[%emt 0:00:06]} 12. Be3 {[%emt 0:00:09]} h6 {[%emt 0:00:07]} 13. Nh3 {[%emt 0:00:03]} Qa5 {[%emt 0:00:11]} 14. Qd2 {[%emt 0:00:12]} Rad8 {[%emt 0:00:19]} 15. Nd5 {[%emt 0:00:15]} Nxd5 {[%emt 0:00:37]} 16. Qxa5 {[%emt 0:00:12]} Nxe3 {[%emt 0:00:02]} 17. Rf2 {[%emt 0:00:31]} b6 {[%emt 0:00:08]} 18. Qxa7 {[%emt 0:00:47]} exd4 {[%emt 0:00:04]} 19. Nf4 {[%emt 0:00:05]} Bg6 {[%emt 0:00:14]} 20. Nxg6 {[%emt 0:00:08]} fxg6 {[%emt 0:00:01]} 21. Bh3 {[%emt 0:00:56]} Bf6 {[%emt 0:00:44]} 22. Bxd7 {[%emt 0:00:35]} d3 {[%emt 0:00:03]} 23. Be6+ {[%emt 0:00:34]} Kh8 {[%emt 0:00:02]} 24. Re1 {[%emt 0:00:37]} Bd4 {[%emt 0:00:07]} 25. Kh1 {[%emt 0:00:26]} Nc2 {[%emt 0:00:17]} 26. Rxc2 {[%emt 0:00:40]} dxc2 {[%emt 0:00:01]} 27. Rc1 {[%emt 0:00:05]} Rxf3 {[%emt 0:00:20]} 28. Rxc2 {[%emt 0:00:00]} Rdf8 {[%emt 0:00:22]} 29. Kg2 {[%emt 0:00:14]} Rf1 {[%emt 0:00:31]} 30. Qe7 {[%emt 0:00:17]} Bc5 {[%emt 0:00:18]} 31. Qd7 {[%emt 0:00:56]} g5 {[%emt 0:00:28]} 32. Bf5 {[%emt 0:00:14]} Rg1+ {[%emt 0:00:20]} 33. Kh3 {[%emt 0:00:17]} h5 {[%emt 0:00:26]} 34. Qe7 {[%emt 0:00:47]} Be3 {[%emt 0:00:50]} 35. Qxf8# {[%emt 0:00:05]} 1-0

[Event "Skalica Rapid 2020"]
[Site "Skalica"]
[Date "2020.08.29"]
[Round "6.12"]
[White "Valenta Vit"]
[Black "Takacs Laszlo"]
[Result "1-0"]
[ECO "B23"]
[WhiteElo "1994"]
[BlackElo "2128"]
[Annotator "ChessBase"]
[PlyCount "101"]
[EventDate "2020.08.29"]
[EventType "swiss"]
[EventCountry "SVK"]
[SourceTitle "playchess.com"]
[Source "ChessBase"]
[SourceQuality "1"]
[TimeControl "600+5"]

1. e4 {[%emt 0:00:00]} c5 {[%emt 0:00:00]} 2. Nc3 {[%emt 0:00:01]} a6 {[%emt 0:00:00]} 3. a4 {[%emt 0:00:02]} e6 {[%emt 0:00:05]} 4. Nge2 {[%emt 0:00:03]} d5 {[%emt 0:00:03]} 5. exd5 {[%emt 0:00:02]} exd5 {[%emt 0:00:01]} 6. d4 {[%emt 0:00:05]} Nf6 {[%emt 0:00:23]} 7. Bg5 {[%emt 0:00:14]} cxd4 {[%emt 0:00:51]} 8. Nxd4 {[%emt 0:00:16]} Be7 {[%emt 0:00:02]} 9. Be2 {[%emt 0:00:06]} O-O {[%emt 0:00:04]} 10. O-O {[%emt 0:00:03]} Nc6 {[%emt 0:00:06]} 11. Bf3 {[%emt 0:00:13]} Qb6 {[%emt 0:00:24]} 12. Nb3 {[%emt 0:00:18]} d4 {[%emt 0:00:49]} 13. Bxf6 {[%emt 0:00:12]} Bxf6 {[%emt 0:00:02]} 14. Nd5 {[%emt 0:00:06]} Qd8 {[%emt 0:00:03]} 15. Nxf6+ {[%emt 0:00:03]} Qxf6 {[%emt 0:00:03]} 16. Bxc6 {[%emt 0:00:01]} Qxc6 {[%emt 0:00:07]} 17. Nxd4 {[%emt 0:00:13]} Qb6 {[%emt 0:00:02]} 18. b3 {[%emt 0:00:29]} Rd8 {[%emt 0:00:12]} 19. c3 {[%emt 0:00:02]} Bf5 {[%emt 0:00:32]} 20. Qf3 {[%emt 0:00:32]} Bg6 {[%emt 0:00:01]} 21. a5 {[%emt 0:00:49]} Qc7 {[%emt 0:00:14]} 22. Qg3 {[%emt 0:00:52]} Qc5 {[%emt 0:00:19]} 23. b4 {[%emt 0:00:12]} Qc4 {[%emt 0:00:08]} 24. Rac1 {[%emt 0:00:31]} Rac8 {[%emt 0:00:04]} 25. Qe3 {[%emt 0:00:09]} Re8 {[%emt 0:00:16]} 26. Qd2 {[%emt 0:00:04]} h6 {[%emt 0:00:35]} 27. Rfe1 {[%emt 0:00:09]} Rxe1+ {[%emt 0:00:03]} 28. Qxe1 {[%emt 0:00:01]} Qd3 {[%emt 0:00:02]} 29. h3 {[%emt 0:00:18]} Kf8 {[%emt 0:01:21]} 30. Qe3 {[%emt 0:00:30]} Qxe3 {[%emt 0:00:01]} 31. fxe3 {[%emt 0:00:02]} Ke7 {[%emt 0:00:02]} 32. Nb3 {[%emt 0:00:17]} Rc7 {[%emt 0:00:35]} 33. Nc5 {[%emt 0:00:10]} Kd6 {[%emt 0:00:02]} 34. Rd1+ {[%emt 0:00:21]} Kc6 {[%emt 0:00:09]} 35. Rd4 {[%emt 0:00:16]} Kb5 {[%emt 0:00:08]} 36. Kf2 {[%emt 0:00:03]} b6 {[%emt 0:00:09]} 37. axb6 {[%emt 0:00:04]} Kxb6 {[%emt 0:00:01]} 38. Rd6+ {[%emt 0:00:06]} Kb5 {[%emt 0:00:04]} 39. Rd4 {[%emt 0:00:51]} a5 {[%emt 0:00:10]} 40. Ke2 {[%emt 0:00:02]} Ra7 {[%emt 0:00:51]} 41. Nb3 {[%emt 0:00:32]} a4 {[%emt 0:00:18]} 42. Na1 {[%emt 0:00:20]} a3 {[%emt 0:00:32]} 43. Kd2 {[%emt 0:00:02]} a2 {[%emt 0:00:35]} 44. Kc1 {[%emt 0:00:01]} Re7 {[%emt 0:00:10]} 45. Rd5+ {[%emt 0:00:38]} Kc4 {[%emt 0:00:28]} 46. Rc5+ {[%emt 0:00:03]} Kd3 {[%emt 0:00:01]} 47. Kb2 {[%emt 0:00:13]} Rxe3 {[%emt 0:00:48]} 48. Kxa2 {[%emt 0:00:08]} f5 {[%emt 0:01:12]} 49. Ka3 {[%emt 0:00:23]} Re2 {[%emt 0:00:42]} 50. b5 {[%emt 0:00:12]} Bf7 {[%emt 0:00:09]} 51. Nb3 {[%emt 0:00:01]} 1-0

[Event "Skalica Rapid 2020"]
[Site "Skalica"]
[Date "2020.08.29"]
[Round "6.12"]
[White "Blaha, Tomas S"]
[Black "Gurevich, Michele"]
[Result "0-1"]
[ECO "C47"]
[WhiteElo "1089"]
[BlackElo "1107"]
[Annotator "NA"]
[PlyCount "125"]
[EventDate "2020.08.29"]
[EventType "swiss"]
[EventCountry "SVK"]
[SourceTitle "playchess.com"]
[Source "ChessBase"]
[SourceQuality "1"]
[TimeControl "600+5"]

1. e4 {[%emt 0:00:00]} e5 {[%emt 0:00:00]} 2. Nf3 {[%emt 0:00:00]} Nf6 {[%emt 0:00:00]} 3. Nc3 {[%emt 0:00:02]} Nc6 {[%emt 0:00:09]} 4. d4 {[%emt 0:00:02]} Bb4 {[%emt 0:01:18]} 5. dxe5 {[%emt 0:01:48]} Nxe5 {[%emt 0:00:33]} 6. Nxe5 {[%emt 0:00:06]} Qe7 {[%emt 0:00:41]} 7. f4 {[%emt 0:00:42]} d6 {[%emt 0:01:01]} 8. Nd3 {[%emt 0:00:15]} Nxe4 {[%emt 0:01:46]} 9. Qe2 {[%emt 0:02:05]} Nxc3 {[%emt 0:00:34]} 10. Qxe7+ {[%emt 0:00:03]} Kxe7 {[%emt 0:00:03]} 11. Bd2 {[%emt 0:00:02]} Nd5 {[%emt 0:00:14]} 12. Nxb4 {[%emt 0:00:09]} Nxb4 {[%emt 0:00:04]} 13. Bxb4 {[%emt 0:00:02]} Re8 {[%emt 0:00:05]} 14. O-O-O {[%emt 0:00:10]} Kf8 {[%emt 0:00:19]} 15. Bd3 {[%emt 0:00:34]} Bg4 {[%emt 0:00:12]} 16. Rde1 {[%emt 0:00:02]} Rxe1+ {[%emt 0:00:07]} 17. Rxe1 {[%emt 0:00:01]} g6 {[%emt 0:00:13]} 18. h3 {[%emt 0:00:48]} Be6 {[%emt 0:00:04]} 19. a3 {[%emt 0:00:12]} c5 {[%emt 0:00:02]} 20. Bc3 {[%emt 0:00:12]} Re8 {[%emt 0:00:13]} 21. g4 {[%emt 0:00:22]} c4 {[%emt 0:00:19]} 22. f5 {[%emt 0:01:00]} cxd3 {[%emt 0:00:09]} 23. fxe6 {[%emt 0:00:02]} dxc2 {[%emt 0:00:11]} 24. exf7 {[%emt 0:00:31]} Rxe1+ {[%emt 0:00:06]} 25. Bxe1 {[%emt 0:00:02]} Kxf7 {[%emt 0:00:04]} 26. Kxc2 {[%emt 0:00:02]} Ke6 {[%emt 0:00:02]} 27. Kd3 {[%emt 0:00:18]} d5 {[%emt 0:00:04]} 28. Bg3 {[%emt 0:00:28]} Kd7 {[%emt 0:00:18]} 29. Bf2 {[%emt 0:00:27]} Kc6 {[%emt 0:00:25]} 30. Bxa7 {[%emt 0:00:05]} b6 {[%emt 0:00:17]} 31. Bb8 {[%emt 0:00:24]} Kc5 {[%emt 0:00:05]} 32. b4+ {[%emt 0:00:09]} Kb5 {[%emt 0:00:08]} 33. Bc7 {[%emt 0:00:13]} Kc6 {[%emt 0:00:10]} 34. Bf4 {[%emt 0:00:11]} b5 {[%emt 0:00:28]} 35. h4 {[%emt 0:00:04]} Kd7 {[%emt 0:00:25]} 36. h5 {[%emt 0:00:23]} gxh5 {[%emt 0:00:05]} 37. gxh5 {[%emt 0:00:00]} Ke6 {[%emt 0:00:08]} 38. h6 {[%emt 0:00:03]} Kf5 {[%emt 0:00:06]} 39. Be3 {[%emt 0:00:03]} Kg6 {[%emt 0:00:12]} 40. Kd4 {[%emt 0:00:03]} Kf5 {[%emt 0:00:07]} 41. Kxd5 {[%emt 0:00:02]} Kg4 {[%emt 0:00:04]} 42. Kc5 {[%emt 0:00:02]} Kf3 {[%emt 0:00:01]} 43. Bc1 {[%emt 0:00:02]} Ke4 {[%emt 0:00:02]} 44. Kxb5 {[%emt 0:00:02]} Kd5 {[%emt 0:00:01]} 45. a4 {[%emt 0:00:14]} Kd6 {[%emt 0:00:07]} 46. Kb6 {[%emt 0:00:01]} Kd7 {[%emt 0:00:01]} 47. Kb7 {[%emt 0:00:01]} Kd8 {[%emt 0:00:02]} 48. a5 {[%emt 0:00:01]} Kd7 {[%emt 0:00:01]} 49. a6 {[%emt 0:00:01]} Kd8 {[%emt 0:00:01]} 50. b5 {[%emt 0:00:02]} Kd7 {[%emt 0:00:02]} 51. b6 {[%emt 0:00:02]} Kd8 {[%emt 0:00:01]} 52. a7 {[%emt 0:00:00]} Kd7 {[%emt 0:00:02]} 53. a8=Q {[%emt 0:00:03]} Kd6 {[%emt 0:00:03]} 54. Ka6 {[%emt 0:00:05]} Kc5 {[%emt 0:00:04]} 55. b7 {[%emt 0:00:01]} Kc4 {[%emt 0:00:02]} 56. b8=Q {[%emt 0:00:02]} Kc3 {[%emt 0:00:02]} 57. Qc7+ {[%emt 0:00:05]} Kd3 {[%emt 0:00:04]} 58. Qxh7+ {[%emt 0:00:03]} Ke2 {[%emt 0:00:05]} 59. Qd8 {[%emt 0:00:14]} Kf3 {[%emt 0:00:05]} 60. Qe8 {[%emt 0:00:04]} Kg4 {[%emt 0:00:03]} 61. Qhg8+ {[%emt 0:00:02]} Kh4 {[%emt 0:00:03]} 62. h7 {[%emt 0:00:02]} Kh3 {[%emt 0:00:13]} 63. h8=R# {[%emt 0:00:01]} 0-1

[Event "Skalica Rapid 2020"]
[Site "Skalica"]
[Date "2020.08.29"]
[Round "6.14"]
[White "Bombek, Peter"]
[Black "Sobek Michal"]
[Result "0-1"]
[ECO "A45"]
[WhiteElo "2090"]
[BlackElo "1913"]
[Annotator "ChessBase"]
[PlyCount "84"]
[EventDate "2020.08.29"]
[EventType "swiss"]
[EventCountry "SVK"]
[SourceTitle "playchess.com"]
[Source "ChessBase"]
[SourceQuality "1"]
[TimeControl "600+5"]

1. d4 {[%emt 0:00:13]} Nf6 {[%emt 0:00:00]} 2. Bg5 {[%emt 0:00:01]} e6 {[%emt 0:00:03]} 3. Nd2 {[%emt 0:00:06]} c5 {[%emt 0:00:11]} 4. e3 {[%emt 0:00:09]} cxd4 {[%emt 0:00:34]} 5. exd4 {[%emt 0:00:03]} Be7 {[%emt 0:00:02]} 6. c3 {[%emt 0:00:08]} d6 {[%emt 0:00:04]} 7. Bd3 {[%emt 0:00:11]} b6 {[%emt 0:00:22]} 8. Qf3 {[%emt 0:00:29]} Nd5 {[%emt 0:00:22]} 9. Bxe7 {[%emt 0:00:29]} Qxe7 {[%emt 0:00:54]} 10. c4 {[%emt 0:00:37]} Nb4 {[%emt 0:00:30]} 11. Qxa8 {[%emt 0:01:18]} Nxd3+ {[%emt 0:00:01]} 12. Ke2 {[%emt 0:00:43]} O-O {[%emt 0:00:23]} 13. Qe4 {[%emt 0:00:56]} Nb4 {[%emt 0:00:41]} 14. Ngf3 {[%emt 0:00:19]} Bb7 {[%emt 0:00:10]} 15. Qh4 {[%emt 0:00:17]} Qxh4 {[%emt 0:00:43]} 16. Nxh4 {[%emt 0:00:04]} Nc2 {[%emt 0:00:01]} 17. Rad1 {[%emt 0:00:56]} Nxd4+ {[%emt 0:00:10]} 18. Kd3 {[%emt 0:00:06]} Nbc6 {[%emt 0:01:08]} 19. Nhf3 {[%emt 0:00:23]} e5 {[%emt 0:00:24]} 20. a3 {[%emt 0:00:12]} f5 {[%emt 0:01:50]} 21. Nxd4 {[%emt 0:00:03]} Nxd4 {[%emt 0:00:04]} 22. f3 {[%emt 0:00:08]} Ne6 {[%emt 0:00:02]} 23. Kc3 {[%emt 0:00:32]} Nf4 {[%emt 0:00:27]} 24. g3 {[%emt 0:00:38]} Ne2+ {[%emt 0:00:01]} 25. Kd3 {[%emt 0:00:18]} Nd4 {[%emt 0:00:01]} 26. Rhf1 {[%emt 0:00:05]} Ba6 {[%emt 0:00:35]} 27. b4 {[%emt 0:00:21]} b5 {[%emt 0:00:01]} 28. f4 {[%emt 0:00:53]} bxc4+ {[%emt 0:00:15]} 29. Kc3 {[%emt 0:00:16]} Ne2+ {[%emt 0:00:10]} 30. Kc2 {[%emt 0:00:11]} Nd4+ {[%emt 0:00:15]} 31. Kb2 {[%emt 0:00:31]} c3+ {[%emt 0:00:12]} 32. Kxc3 {[%emt 0:00:16]} Rc8+ {[%emt 0:00:10]} 33. Kb2 {[%emt 0:00:05]} Rc2+ {[%emt 0:00:08]} 34. Kb1 {[%emt 0:00:08]} Rxd2 {[%emt 0:00:29]} 35. Rxd2 {[%emt 0:00:17]} Bxf1 {[%emt 0:00:01]} 36. a4 {[%emt 0:00:18]} Kf7 {[%emt 0:00:06]} 37. Kb2 {[%emt 0:00:02]} Ke6 {[%emt 0:00:08]} 38. b5 {[%emt 0:00:15]} Kd5 {[%emt 0:00:13]} 39. Kc3 {[%emt 0:00:02]} Kc5 {[%emt 0:00:01]} 40. fxe5 {[%emt 0:00:11]} dxe5 {[%emt 0:00:03]} 41. Rf2 {[%emt 0:00:02]} Bc4 {[%emt 0:00:05]} 42. h3 {[%emt 0:00:11]} Ne2+ {[%emt 0:00:25]} 0-1

[Event "Skalica Rapid 2020"]
[Site "Skalica"]
[Date "2020.08.29"]
[Round "6.15"]
[White "Majoros, Rozsa Evelin"]
[Black "Jablonicky, Frantisek"]
[Result "0-1"]
[ECO "B16"]
[WhiteElo "1936"]
[BlackElo "2038"]
[Annotator "NA"]
[PlyCount "29"]
[EventDate "2020.08.29"]
[EventType "swiss"]
[EventCountry "SVK"]
[SourceTitle "playchess.com"]
[Source "ChessBase"]
[SourceQuality "1"]
[TimeControl "600+5"]

1. e4 {[%emt 0:00:00]} c6 {[%emt 0:00:00]} 2. d4 {[%emt 0:00:00]} d5 {[%emt 0:00:00]} 3. Nd2 {[%emt 0:00:08]} dxe4 {[%emt 0:00:00]} 4. Nxe4 {[%emt 0:00:01]} Nf6 {[%emt 0:00:01]} 5. Nxf6+ {[%emt 0:00:02]} gxf6 {[%emt 0:00:01]} 6. c3 {[%emt 0:00:04]} Bf5 {[%emt 0:00:02]} 7. Nf3 {[%emt 0:00:05]} e6 {[%emt 0:00:02]} 8. Be3 {[%emt 0:00:08]} Bd6 {[%emt 0:00:02]} 9. Nh4 {[%emt 0:00:20]} Bg6 {[%emt 0:00:06]} 10. Nxg6 {[%emt 0:00:03]} hxg6 {[%emt 0:00:02]} 11. Bd3 {[%emt 0:00:24]} Qc7 {[%emt 0:00:04]} 12. h3 {[%emt 0:00:05]} Nd7 {[%emt 0:00:02]} 13. Qd2 {[%emt 0:00:10]} f5 {[%emt 0:00:32]} 14. O-O-O {[%emt 0:00:03]} Rh4 {[%emt 0:00:50]} 15. Rhf1 {[%emt 0:01:20]} 0-1